Workbook

Sheet 笔试面试综合成绩
A1: 附件2：
A2: 台江县2024年公开选聘城市社区工作者笔试面试综合成绩一览表
A3: 序号 | B3: 姓名 | C3: 报考单位 | D3: 报考岗位代码 | E3: 笔试成绩 | F3: 笔试成绩 所占比例 50% | G3: 面试成绩 | H3: 面试成绩 所占比例 50% | I3: 综合成绩 | J3: 备注
A4: 1 | B4: 张郸月 | C4: 台拱街道文昌社区 | D4: 15001 | E4: 66.27 | F4: =E4*0.5 -> 33.14 | G4: 83.67 | H4: =G4*0.5 -> 41.84 | I4: 74.98
A5: 2 | B5: 张秀英 | C5: 台拱街道文昌社区 | D5: 15001 | E5: 64.42 | F5: =E5*0.5 -> 32.21 | G5: 86.00 | H5: =G5*0.5 -> 43.00 | I5: =F5+H5 -> 75.21
A6: 3 | B6: 邰艾婉 | C6: 台拱街道文昌社区 | D6: 15001 | E6: 63.70 | F6: 31.85 | G6: 78.67 | H6: 39.34 | I6: 71.19
A7: 4 | B7: 吴谋平 | C7: 萃文街道萃文社区 | D7: 15002 | E7: 75.69 | F7: 37.85 | G7: 78.33 | H7: 39.17 | I7: 77.02
A8: 5 | B8: 殷建康 | C8: 萃文街道萃文社区 | D8: 15002 | E8: 71.23 | F8: 35.62 | G8: 84.33 | H8: 42.17 | I8: 77.79
A9: 6 | B9: 张秀芬 | C9: 萃文街道萃文社区 | D9: 15002 | E9: 69.80 | F9: 34.90 | G9: 77.33 | H9: 38.67 | I9: 73.57
A10: 7 | B10: 田维美 | C10: 萃文街道萃文社区 | D10: 15002 | E10: 68.28 | F10: 34.14 | G10: 63.00 | H10: 31.50 | I10: 65.64
A11: 8 | B11: 李忠臻 | C11: 萃文街道萃文社区 | D11: 15002 | E11: 66.17 | F11: 33.09 | G11: 84.00 | H11: 42.00 | I11: 75.09
A12: 9 | B12: 蒲增华 | C12: 萃文街道萃文社区 | D12: 15002 | E12: 64.50 | F12: 32.25 | G12: 80.67 | H12: =G12*0.5 -> 40.34 | I12: 72.59
A13: 10 | B13: 张嘉懿 | C13: 萃文街道萃文社区 | D13: 15002 | E13: 64.46 | F13: 32.23 | G13: 81.33 | H13: =G13*0.5 -> 40.67 | I13: 72.90
A14: 11 | B14: 邰树宝 | C14: 萃文街道萃文社区 | D14: 15002 | E14: 64.34 | F14: 32.17 | G14: 81.33 | H14: =G14*0.5 -> 40.67 | I14: 72.84
A15: 12 | B15: 欧阳朝霞 | C15: 萃文街道萃文社区 | D15: 15002 | E15: 64.17 | F15: 32.09 | G15: 81.00 | H15: =G15*0.5 -> 40.50 | I15: 72.59
A16: 13 | B16: 梁俊英 | C16: 萃文街道萃文社区 | D16: 15002 | E16: 63.50 | F16: 31.75 | G16: 74.67 | H16: 37.34 | I16: 69.09
A17: 14 | B17: 龙明坤 | C17: 萃文街道萃文社区 | D17: 15002 | E17: 63.36 | F17: 31.68 | G17: 0 | H17: 0.00 | I17: 31.68
A18: 15 | B18: 王金莹 | C18: 萃文街道萃文社区 | D18: 15002 | E18: 63.25 | F18: 31.63 | G18: 79.33 | H18: 39.67 | I18: 71.30
A19: 16 | B19: 李 杰 | C19: 萃文街道萃文社区 | D19: 15003 | E19: 71.19 | F19: 35.60 | G19: 74.67 | H19: 37.34 | I19: 72.94
A20: 17 | B20: 赵先妹 | C20: 萃文街道萃文社区 | D20: 15003 | E20: 70.68 | F20: 35.34 | G20: 74.67 | H20: 37.34 | I20: 72.68
A21: 18 | B21: 李 龙 | C21: 萃文街道萃文社区 | D21: 15003 | E21: 69.45 | F21: 34.73 | G21: 71.67 | H21: 35.84 | I21: 70.57
A22: 19 | B22: 杨美英 | C22: 萃文街道萃文社区 | D22: 15003 | E22: 69.19 | F22: 34.60 | G22: 75.67 | H22: 37.84 | I22: 72.44
A23: 20 | B23: 王笑天 | C23: 萃文街道萃文社区 | D23: 15003 | E23: 68.45 | F23: 34.23 | G23: 75.67 | H23: 37.84 | I23: 72.07
A24: 21 | B24: 龙召伟 | C24: 萃文街道萃文社区 | D24: 15003 | E24: 68.31 | F24: 34.16 | G24: 78.33 | H24: 39.17 | I24: 73.33
A25: 22 | B25: 卢娇㻛 | C25: 萃文街道萃文社区 | D25: 15003 | E25: 68.18 | F25: 34.09 | G25: 79.33 | H25: 39.67 | I25: 73.76
A26: 23 | B26: 张朝丽 | C26: 萃文街道萃文社区 | D26: 15003 | E26: 68.02 | F26: 34.01 | G26: 74.33 | H26: 37.17 | I26: 71.18
A27: 24 | B27: 王家佳 | C27: 萃文街道萃文社区 | D27: 15003 | E27: 67.65 | F27: 33.83 | G27: 82.33 | H27: 41.17 | I27: 75.00
A28: 25 | B28: 唐江河 | C28: 萃文街道萃文社区 | D28: 15003 | E28: 67.26 | F28: 33.63 | G28: 0 | H28: 0.00 | I28: 33.63
A29: 26 | B29: 邰 前 | C29: 萃文街道萃文社区 | D29: 15003 | E29: 67.24 | F29: 33.62 | G29: 78.33 | H29: 39.17 | I29: 72.79
A30: 27 | B30: 潘年秋 | C30: 萃文街道萃文社区 | D30: 15003 | E30: 67.19 | F30: 33.60 | G30: 78.00 | H30: 39.00 | I30: 72.60
A31: 28 | B31: 龙骊铸 | C31: 萃文街道萃文社区 | D31: 15003 | E31: 67.16 | F31: 33.58 | G31: 73.67 | H31: 36.84 | I31: 70.42
A32: 29 | B32: 熊 斌 | C32: 萃文街道萃文社区 | D32: 15003 | E32: 66.90 | F32: 33.45 | G32: 79.00 | H32: 39.50 | I32: 72.95
A33: 30 | B33: 李龙凌霄 | C33: 萃文街道萃文社区 | D33: 15003 | E33: 66.41 | F33: 33.21 | G33: 80.00 | H33: 40.00 | I33: 73.21
A34: 31 | B34: 张金祥 | C34: 萃文街道萃文社区 | D34: 15003 | E34: 65.94 | F34: 32.97 | G34: 72.67 | H34: 36.34 | I34: 69.31
A35: 32 | B35: 杨 锦 | C35: 萃文街道萃文社区 | D35: 15003 | E35: 65.34 | F35: 32.67 | G35: 70.33 | H35: 35.17 | I35: 67.84
A36: 33 | B36: 王 艺 | C36: 萃文街道萃文社区 | D36: 15003 | E36: 65.04 | F36: 32.52 | G36: 76.33 | H36: 38.17 | I36: 70.69
A37: 34 | B37: 张雪晶 | C37: 萃文街道萃文社区 | D37: 15003 | E37: 64.78 | F37: =E37*0.5 -> 32.39 | G37: 77.33 | H37: =G37*0.5 -> 38.67 | I37: =F37+H37 -> 71.06
A38: 35 | B38: 潘年梅 | C38: 萃文街道萃文社区 | D38: 15003 | E38: 64.49 | F38: =E38*0.5 -> 32.25 | G38: 68.00 | H38: =G38*0.5 -> 34.00 | I38: =F38+H38 -> 66.25
A39: 36 | B39: 刘嘉辰 | C39: 萃文街道萃文社区 | D39: 15003 | E39: 64.31 | F39: =E39*0.5 -> 32.16 | G39: 72.33 | H39: =G39*0.5 -> 36.17 | I39: 68.33
